Workbook

Sheet Expenses
B1: Employee Expenses
B4: Employee Name | C4: Date | D4: Amount | E4: Reimbursable | F4: Category | G4: Department
B5: Michael Scott | C5: 2026-06-09 | D5: 500 | E5: FALSE | F5: Travel | G5: =_xlfn.XLOOKUP(tblEmployeeExpenses[[#This Row],[Employee Name]],Departments[Employee Name],Departments[Department]) -> Management
B6: Phyllis Vance | C6: 2026-06-09 | D6: 60 | E6: TRUE | F6: Miscellaneous | G6: =_xlfn.XLOOKUP(tblEmployeeExpenses[[#This Row],[Employee Name]],Departments[Employee Name],Departments[Department]) -> Sales
B7: Pam Beesly | C7: 2026-06-15 | D7: 22.5 | E7: TRUE | F7: Office Supplies | G7: =_xlfn.XLOOKUP(tblEmployeeExpenses[[#This Row],[Employee Name]],Departments[Employee Name],Departments[Department]) -> Reception
B8: Kevin Malone | C8: 2026-06-19 | D8: 88.4 | E8: TRUE | F8: Office Supplies | G8: =_xlfn.XLOOKUP(tblEmployeeExpenses[[#This Row],[Employee Name]],Departments[Employee Name],Departments[Department]) -> Accounting
B9: Dwight Schrute | C9: 2026-06-21 | D9: 12.5 | E9: TRUE | F9: Miscellaneous | G9: =_xlfn.XLOOKUP(tblEmployeeExpenses[[#This Row],[Employee Name]],Departments[Employee Name],Departments[Department]) -> Sales
B10: Angela Martin | C10: 2026-06-23 | D10: 130 | E10: TRUE | F10: Meals & Entertainment | G10: =_xlfn.XLOOKUP(tblEmployeeExpenses[[#This Row],[Employee Name]],Departments[Employee Name],Departments[Department]) -> Accounting
B11: Dwight Schrute | C11: 2026-06-26 | D11: 19.99 | E11: TRUE | F11: Software & Subscriptions | G11: =_xlfn.XLOOKUP(tblEmployeeExpenses[[#This Row],[Employee Name]],Departments[Employee Name],Departments[Department]) -> Sales
B12: Stanley Hudson | C12: 2026-06-28 | D12: 310.2 | E12: TRUE | F12: Travel | G12: =_xlfn.XLOOKUP(tblEmployeeExpenses[[#This Row],[Employee Name]],Departments[Employee Name],Departments[Department]) -> Sales
B13: Meredith Palmer | C13: 2026-06-30 | D13: 450 | E13: TRUE | F13: Lodging | G13: =_xlfn.XLOOKUP(tblEmployeeExpenses[[#This Row],[Employee Name]],Departments[Employee Name],Departments[Department]) -> Supplier Relations
B14: Michael Scott | C14: 2026-06-30 | D14: 275 | E14: FALSE | F14: Travel | G14: =_xlfn.XLOOKUP(tblEmployeeExpenses[[#This Row],[Employee Name]],Departments[Employee Name],Departments[Department]) -> Management
B15: Andy Bernard | C15: 2026-07-03 | D15: 95.3 | E15: TRUE | F15: Travel | G15: =_xlfn.XLOOKUP(tblEmployeeExpenses[[#This Row],[Employee Name]],Departments[Employee Name],Departments[Department]) -> Sales
B16: Erin Hannon | C16: 2026-07-04 | D16: 40 | E16: TRUE | F16: Miscellaneous | G16: =_xlfn.XLOOKUP(tblEmployeeExpenses[[#This Row],[Employee Name]],Departments[Employee Name],Departments[Department]) -> Reception
B17: Jim Halpert | C17: 2026-07-05 | D17: 65 | E17: TRUE | F17: Meals & Entertainment | G17: =_xlfn.XLOOKUP(tblEmployeeExpenses[[#This Row],[Employee Name]],Departments[Employee Name],Departments[Department]) -> Sales
B18: Kelly Kapoor | C18: 2026-07-06 | D18: 76.25 | E18: TRUE | F18: Office Supplies | G18: =_xlfn.XLOOKUP(tblEmployeeExpenses[[#This Row],[Employee Name]],Departments[Employee Name],Departments[Department]) -> Customer Service
B19: Jim Halpert | C19: 2026-07-10 | D19: 250 | E19: TRUE | F19: Meals & Entertainment | G19: =_xlfn.XLOOKUP(tblEmployeeExpenses[[#This Row],[Employee Name]],Departments[Employee Name],Departments[Department]) -> Sales

Sheet Expenses - Groups
B1: Employee Expenses
B4: Employee Name | C4: Date | D4: Amount | E4: Reimbursable | F4: Category | G4: Department | H4: Month | I4: Month Name | J4: Quarter | K4: Year
B5: Michael Scott | C5: 2026-06-09 | D5: 500 | E5: FALSE | F5: Travel | G5: =_xlfn.XLOOKUP(tblEmployeeExpenses[[#This Row],[Employee Name]],Departments[Employee Name],Departments[Department]) -> Management | H5: =MONTH(tblExpenses[[#This Row],[Date]]) -> 6 | I5: =TEXT(tblExpenses[[#This Row],[Date]],"mmm") -> Jun | J5: ="Q"&ROUNDUP(MONTH(tblExpenses[[#This Row],[Date]])/3,0) -> Q2 | K5: =YEAR(tblExpenses[[#This Row],[Date]]) -> 2026
B6: Phyllis Vance | C6: 2026-06-09 | D6: 60 | E6: TRUE | F6: Miscellaneous | G6: =_xlfn.XLOOKUP(tblEmployeeExpenses[[#This Row],[Employee Name]],Departments[Employee Name],Departments[Department]) -> Sales | H6: =MONTH(tblExpenses[[#This Row],[Date]]) -> 6 | I6: =TEXT(tblExpenses[[#This Row],[Date]],"mmm") -> Jun | J6: ="Q"&ROUNDUP(MONTH(tblExpenses[[#This Row],[Date]])/3,0) -> Q2 | K6: =YEAR(tblExpenses[[#This Row],[Date]]) -> 2026
B7: Pam Beesly | C7: 2026-06-15 | D7: 22.5 | E7: TRUE | F7: Office Supplies | G7: =_xlfn.XLOOKUP(tblEmployeeExpenses[[#This Row],[Employee Name]],Departments[Employee Name],Departments[Department]) -> Reception | H7: =MONTH(tblExpenses[[#This Row],[Date]]) -> 6 | I7: =TEXT(tblExpenses[[#This Row],[Date]],"mmm") -> Jun | J7: ="Q"&ROUNDUP(MONTH(tblExpenses[[#This Row],[Date]])/3,0) -> Q2 | K7: =YEAR(tblExpenses[[#This Row],[Date]]) -> 2026
B8: Kevin Malone | C8: 2026-06-19 | D8: 88.4 | E8: TRUE | F8: Office Supplies | G8: =_xlfn.XLOOKUP(tblEmployeeExpenses[[#This Row],[Employee Name]],Departments[Employee Name],Departments[Department]) -> Accounting | H8: =MONTH(tblExpenses[[#This Row],[Date]]) -> 6 | I8: =TEXT(tblExpenses[[#This Row],[Date]],"mmm") -> Jun | J8: ="Q"&ROUNDUP(MONTH(tblExpenses[[#This Row],[Date]])/3,0) -> Q2 | K8: =YEAR(tblExpenses[[#This Row],[Date]]) -> 2026
B9: Dwight Schrute | C9: 2026-06-21 | D9: 12.5 | E9: TRUE | F9: Miscellaneous | G9: =_xlfn.XLOOKUP(tblEmployeeExpenses[[#This Row],[Employee Name]],Departments[Employee Name],Departments[Department]) -> Sales | H9: =MONTH(tblExpenses[[#This Row],[Date]]) -> 6 | I9: =TEXT(tblExpenses[[#This Row],[Date]],"mmm") -> Jun | J9: ="Q"&ROUNDUP(MONTH(tblExpenses[[#This Row],[Date]])/3,0) -> Q2 | K9: =YEAR(tblExpenses[[#This Row],[Date]]) -> 2026
B10: Angela Martin | C10: 2026-06-23 | D10: 130 | E10: TRUE | F10: Meals & Entertainment | G10: =_xlfn.XLOOKUP(tblEmployeeExpenses[[#This Row],[Employee Name]],Departments[Employee Name],Departments[Department]) -> Accounting | H10: =MONTH(tblExpenses[[#This Row],[Date]]) -> 6 | I10: =TEXT(tblExpenses[[#This Row],[Date]],"mmm") -> Jun | J10: ="Q"&ROUNDUP(MONTH(tblExpenses[[#This Row],[Date]])/3,0) -> Q2 | K10: =YEAR(tblExpenses[[#This Row],[Date]]) -> 2026
B11: Dwight Schrute | C11: 2026-06-26 | D11: 19.99 | E11: TRUE | F11: Software & Subscriptions | G11: =_xlfn.XLOOKUP(tblEmployeeExpenses[[#This Row],[Employee Name]],Departments[Employee Name],Departments[Department]) -> Sales | H11: =MONTH(tblExpenses[[#This Row],[Date]]) -> 6 | I11: =TEXT(tblExpenses[[#This Row],[Date]],"mmm") -> Jun | J11: ="Q"&ROUNDUP(MONTH(tblExpenses[[#This Row],[Date]])/3,0) -> Q2 | K11: =YEAR(tblExpenses[[#This Row],[Date]]) -> 2026
B12: Stanley Hudson | C12: 2026-06-28 | D12: 310.2 | E12: TRUE | F12: Travel | G12: =_xlfn.XLOOKUP(tblEmployeeExpenses[[#This Row],[Employee Name]],Departments[Employee Name],Departments[Department]) -> Sales | H12: =MONTH(tblExpenses[[#This Row],[Date]]) -> 6 | I12: =TEXT(tblExpenses[[#This Row],[Date]],"mmm") -> Jun | J12: ="Q"&ROUNDUP(MONTH(tblExpenses[[#This Row],[Date]])/3,0) -> Q2 | K12: =YEAR(tblExpenses[[#This Row],[Date]]) -> 2026
B13: Meredith Palmer | C13: 2026-06-30 | D13: 450 | E13: TRUE | F13: Lodging | G13: =_xlfn.XLOOKUP(tblEmployeeExpenses[[#This Row],[Employee Name]],Departments[Employee Name],Departments[Department]) -> Supplier Relations | H13: =MONTH(tblExpenses[[#This Row],[Date]]) -> 6 | I13: =TEXT(tblExpenses[[#This Row],[Date]],"mmm") -> Jun | J13: ="Q"&ROUNDUP(MONTH(tblExpenses[[#This Row],[Date]])/3,0) -> Q2 | K13: =YEAR(tblExpenses[[#This Row],[Date]]) -> 2026
B14: Michael Scott | C14: 2026-06-30 | D14: 275 | E14: FALSE | F14: Travel | G14: =_xlfn.XLOOKUP(tblEmployeeExpenses[[#This Row],[Employee Name]],Departments[Employee Name],Departments[Department]) -> Management | H14: =MONTH(tblExpenses[[#This Row],[Date]]) -> 6 | I14: =TEXT(tblExpenses[[#This Row],[Date]],"mmm") -> Jun | J14: ="Q"&ROUNDUP(MONTH(tblExpenses[[#This Row],[Date]])/3,0) -> Q2 | K14: =YEAR(tblExpenses[[#This Row],[Date]]) -> 2026
B15: Andy Bernard | C15: 2026-07-03 | D15: 95.3 | E15: TRUE | F15: Travel | G15: =_xlfn.XLOOKUP(tblEmployeeExpenses[[#This Row],[Employee Name]],Departments[Employee Name],Departments[Department]) -> Sales | H15: =MONTH(tblExpenses[[#This Row],[Date]]) -> 7 | I15: =TEXT(tblExpenses[[#This Row],[Date]],"mmm") -> Jul | J15: ="Q"&ROUNDUP(MONTH(tblExpenses[[#This Row],[Date]])/3,0) -> Q3 | K15: =YEAR(tblExpenses[[#This Row],[Date]]) -> 2026
B16: Erin Hannon | C16: 2026-07-04 | D16: 40 | E16: TRUE | F16: Miscellaneous | G16: =_xlfn.XLOOKUP(tblEmployeeExpenses[[#This Row],[Employee Name]],Departments[Employee Name],Departments[Department]) -> Reception | H16: =MONTH(tblExpenses[[#This Row],[Date]]) -> 7 | I16: =TEXT(tblExpenses[[#This Row],[Date]],"mmm") -> Jul | J16: ="Q"&ROUNDUP(MONTH(tblExpenses[[#This Row],[Date]])/3,0) -> Q3 | K16: =YEAR(tblExpenses[[#This Row],[Date]]) -> 2026
B17: Jim Halpert | C17: 2026-07-05 | D17: 65 | E17: TRUE | F17: Meals & Entertainment | G17: =_xlfn.XLOOKUP(tblEmployeeExpenses[[#This Row],[Employee Name]],Departments[Employee Name],Departments[Department]) -> Sales | H17: =MONTH(tblExpenses[[#This Row],[Date]]) -> 7 | I17: =TEXT(tblExpenses[[#This Row],[Date]],"mmm") -> Jul | J17: ="Q"&ROUNDUP(MONTH(tblExpenses[[#This Row],[Date]])/3,0) -> Q3 | K17: =YEAR(tblExpenses[[#This Row],[Date]]) -> 2026
B18: Kelly Kapoor | C18: 2026-07-06 | D18: 76.25 | E18: TRUE | F18: Office Supplies | G18: =_xlfn.XLOOKUP(tblEmployeeExpenses[[#This Row],[Employee Name]],Departments[Employee Name],Departments[Department]) -> Customer Service | H18: =MONTH(tblExpenses[[#This Row],[Date]]) -> 7 | I18: =TEXT(tblExpenses[[#This Row],[Date]],"mmm") -> Jul | J18: ="Q"&ROUNDUP(MONTH(tblExpenses[[#This Row],[Date]])/3,0) -> Q3 | K18: =YEAR(tblExpenses[[#This Row],[Date]]) -> 2026
B19: Jim Halpert | C19: 2026-07-10 | D19: 250 | E19: TRUE | F19: Meals & Entertainment | G19: =_xlfn.XLOOKUP(tblEmployeeExpenses[[#This Row],[Employee Name]],Departments[Employee Name],Departments[Department]) -> Sales | H19: =MONTH(tblExpenses[[#This Row],[Date]]) -> 7 | I19: =TEXT(tblExpenses[[#This Row],[Date]],"mmm") -> Jul | J19: ="Q"&ROUNDUP(MONTH(tblExpenses[[#This Row],[Date]])/3,0) -> Q3 | K19: =YEAR(tblExpenses[[#This Row],[Date]]) -> 2026
B20: Total | D20: =SUBTOTAL(109,tblExpenses[Amount]) -> 2395.14

Sheet Expenses - Spin Button
B1: Employee Expenses
E3: Reimbursement Max | F3: 80
B5: Employee Name | C5: Date | D5: Amount | E5: Reimbursable | F5: Reimbursement
B6: Michael Scott | C6: 2026-06-09 | D6: 500 | E6: FALSE | F6: =IF(tblExpenses7[[#This Row],[Reimbursable]],MIN(tblExpenses7[[#This Row],[Amount]],$F$3),0) -> 0
B7: Phyllis Vance | C7: 2026-06-09 | D7: 60 | E7: TRUE | F7: =IF(tblExpenses7[[#This Row],[Reimbursable]],MIN(tblExpenses7[[#This Row],[Amount]],$F$3),0) -> 60
B8: Pam Beesly | C8: 2026-06-15 | D8: 22.5 | E8: TRUE | F8: =IF(tblExpenses7[[#This Row],[Reimbursable]],MIN(tblExpenses7[[#This Row],[Amount]],$F$3),0) -> 22.5
B9: Kevin Malone | C9: 2026-06-19 | D9: 88.4 | E9: TRUE | F9: =IF(tblExpenses7[[#This Row],[Reimbursable]],MIN(tblExpenses7[[#This Row],[Amount]],$F$3),0) -> 80
B10: Dwight Schrute | C10: 2026-06-21 | D10: 12.5 | E10: TRUE | F10: =IF(tblExpenses7[[#This Row],[Reimbursable]],MIN(tblExpenses7[[#This Row],[Amount]],$F$3),0) -> 12.5
B11: Angela Martin | C11: 2026-06-23 | D11: 130 | E11: TRUE | F11: =IF(tblExpenses7[[#This Row],[Reimbursable]],MIN(tblExpenses7[[#This Row],[Amount]],$F$3),0) -> 80
B12: Dwight Schrute | C12: 2026-06-26 | D12: 19.99 | E12: TRUE | F12: =IF(tblExpenses7[[#This Row],[Reimbursable]],MIN(tblExpenses7[[#This Row],[Amount]],$F$3),0) -> 19.99
B13: Stanley Hudson | C13: 2026-06-28 | D13: 310.2 | E13: TRUE | F13: =IF(tblExpenses7[[#This Row],[Reimbursable]],MIN(tblExpenses7[[#This Row],[Amount]],$F$3),0) -> 80
B14: Meredith Palmer | C14: 2026-06-30 | D14: 450 | E14: TRUE | F14: =IF(tblExpenses7[[#This Row],[Reimbursable]],MIN(tblExpenses7[[#This Row],[Amount]],$F$3),0) -> 80
B15: Michael Scott | C15: 2026-06-30 | D15: 275 | E15: FALSE | F15: =IF(tblExpenses7[[#This Row],[Reimbursable]],MIN(tblExpenses7[[#This Row],[Amount]],$F$3),0) -> 0
B16: Andy Bernard | C16: 2026-07-03 | D16: 95.3 | E16: TRUE | F16: =IF(tblExpenses7[[#This Row],[Reimbursable]],MIN(tblExpenses7[[#This Row],[Amount]],$F$3),0) -> 80
B17: Erin Hannon | C17: 2026-07-04 | D17: 40 | E17: TRUE | F17: =IF(tblExpenses7[[#This Row],[Reimbursable]],MIN(tblExpenses7[[#This Row],[Amount]],$F$3),0) -> 40
B18: Jim Halpert | C18: 2026-07-05 | D18: 65 | E18: TRUE | F18: =IF(tblExpenses7[[#This Row],[Reimbursable]],MIN(tblExpenses7[[#This Row],[Amount]],$F$3),0) -> 65
B19: Kelly Kapoor | C19: 2026-07-06 | D19: 76.25 | E19: TRUE | F19: =IF(tblExpenses7[[#This Row],[Reimbursable]],MIN(tblExpenses7[[#This Row],[Amount]],$F$3),0) -> 76.25
B20: Jim Halpert | C20: 2026-07-10 | D20: 250 | E20: TRUE | F20: =IF(tblExpenses7[[#This Row],[Reimbursable]],MIN(tblExpenses7[[#This Row],[Amount]],$F$3),0) -> 80
B21: Total | D21: =SUBTOTAL(109,tblExpenses7[Amount]) -> 2395.14 | F21: =SUBTOTAL(109,tblExpenses7[Reimbursement]) -> 776.24

Sheet Categories
A1: Category
A2: Travel
A3: Meals & Entertainment
A4: Office Supplies
A5: Software & Subscriptions
A6: Lodging
A7: Transportation
A8: Miscellaneous

Sheet Employees
A1: Employee Name | B1: Department
A2: Michael Scott | B2: Management
A3: Jim Halpert | B3: Sales
A4: Pam Beesly | B4: Reception
A5: Dwight Schrute | B5: Sales
A6: Andy Bernard | B6: Sales
A7: Kevin Malone | B7: Accounting
A8: Angela Martin | B8: Accounting
A9: Oscar Martinez | B9: Accounting
A10: Stanley Hudson | B10: Sales
A11: Phyllis Vance | B11: Sales
A12: Creed Bratton | B12: Quality Assurance
A13: Meredith Palmer | B13: Supplier Relations
A14: Ryan Howard | B14: Sales
A15: Kelly Kapoor | B15: Customer Service
A16: Toby Flenderson | B16: Human Resources
A17: Darryl Philbin | B17: Warehouse
A18: Erin Hannon | B18: Reception

Sheet Employee Report
B1: Employee Report
B4: Row Labels | C4: Sum of Amount
B5: Ryan Howard | C5: 63.49
B6: Erin Hannon | C6: 73.33
B7: Phyllis Vance | C7: 87.99
B8: Darryl Philbin | C8: 100.7
B9: Oscar Martinez | C9: 106.95
B10: Kevin Malone | C10: 107.39
B11: Kelly Kapoor | C11: 164.25
B12: Creed Bratton | C12: 215.74
B13: Andy Bernard | C13: 229.3
B14: Angela Martin | C14: 275
B15: Toby Flenderson | C15: 275
B16: Dwight Schrute | C16: 307.49
B17: Jim Halpert | C17: 423.75
B18: Stanley Hudson | C18: 515.2
B19: Pam Beesly | C19: 653.69
B20: Meredith Palmer | C20: 830
B21: Michael Scott | C21: 1733.06
B22: Grand Total | C22: 6162.33

Sheet Category Report
B1: Category Report
B4: Row Labels | C4: Sum of Amount
B5: Miscellaneous | C5: 173.82
B6: Software & Subscriptions | C6: 268.96
B7: Transportation | C7: 402.65
B8: Office Supplies | C8: 421.89
B9: Meals & Entertainment | C9: 852.01
B10: Lodging | C10: 1740.5
B11: Travel | C11: 2302.5
B12: Grand Total | C12: 6162.33

Sheet Quarterly Expense Report
B1: Expense Report - H1 2026
B3: Expense Category | C3: Jan | D3: Feb | E3: Mar | F3: Q1 Total | G3: Apr | H3: May | I3: Jun | J3: Q2 Total | K3: H1 Total
B4: Airfare | C4: 450 | D4: 520 | E4: 610 | F4: =SUM(C4:E4) -> 1580 | G4: 480 | H4: 530 | I4: 600 | J4: =SUM(G4:I4) -> 1610 | K4: =F4+J4 -> 3190
B5: Rental Car & Mileage | C5: 180 | D5: 150 | E5: 200 | F5: 530 | G5: 175 | H5: 160 | I5: 190 | J5: 525 | K5: 1055
B6: Travel Total | C6: =SUM(C4:C5) -> 630 | D6: =SUM(D4:D5) -> 670 | E6: =SUM(E4:E5) -> 810 | F6: 2110 | G6: =SUM(G4:G5) -> 655 | H6: =SUM(H4:H5) -> 690 | I6: =SUM(I4:I5) -> 790 | J6: 2135 | K6: 4245
B7: Client Meals | C7: 220 | D7: 240 | E7: 210 | F7: 670 | G7: 260 | H7: 230 | I7: 250 | J7: 740 | K7: 1410
B8: Team Meals | C8: 90 | D8: 85 | E8: 95 | F8: 270 | G8: 100 | H8: 88 | I8: 92 | J8: 280 | K8: 550
B9: Meals & Entertainment Total | C9: =SUM(C7:C8) -> 310 | D9: =SUM(D7:D8) -> 325 | E9: =SUM(E7:E8) -> 305 | F9: 940 | G9: =SUM(G7:G8) -> 360 | H9: =SUM(H7:H8) -> 318 | I9: =SUM(I7:I8) -> 342 | J9: 1020 | K9: 1960
B10: Supplies & Printing | C10: 65 | D10: 70 | E10: 60 | F10: 195 | G10: 75 | H10: 68 | I10: 72 | J10: 215 | K10: 410
B11: Equipment | C11: 120 | D11: 40 | E11: 0 | F11: 160 | G11: 150 | H11: 0 | I11: 60 | J11: 210 | K11: 370
B12: Office Supplies Total | C12: =SUM(C10:C11) -> 185 | D12: =SUM(D10:D11) -> 110 | E12: =SUM(E10:E11) -> 60 | F12: 355 | G12: =SUM(G10:G11) -> 225 | H12: =SUM(H10:H11) -> 68 | I12: =SUM(I10:I11) -> 132 | J12: 425 | K12: 780
B13: SaaS Licenses | C13: 300 | D13: 300 | E13: 300 | F13: 900 | G13: 300 | H13: 300 | I13: 300 | J13: 900 | K13: 1800
B14: Cloud Hosting | C14: 85 | D14: 90 | E14: 88 | F14: 263 | G14: 92 | H14: 95 | I14: 98 | J14: 285 | K14: 548
B15: Software & Subscriptions Total | C15: =SUM(C13:C14) -> 385 | D15: =SUM(D13:D14) -> 390 | E15: =SUM(E13:E14) -> 388 | F15: 1163 | G15: =SUM(G13:G14) -> 392 | H15: =SUM(H13:H14) -> 395 | I15: =SUM(I13:I14) -> 398 | J15: 1185 | K15: 2348
B16: Hotel Stays | C16: 380 | D16: 420 | E16: 350 | F16: 1150 | G16: 400 | H16: 390 | I16: 410 | J16: 1200 | K16: 2350
B17: Corporate Housing | C17: 150 | D17: 180 | E17: 160 | F17: 490 | G17: 170 | H17: 155 | I17: 165 | J17: 490 | K17: 980
B18: Lodging Total | C18: =SUM(C16:C17) -> 530 | D18: =SUM(D16:D17) -> 600 | E18: =SUM(E16:E17) -> 510 | F18: 1640 | G18: =SUM(G16:G17) -> 570 | H18: =SUM(H16:H17) -> 545 | I18: =SUM(I16:I17) -> 575 | J18: 1690 | K18: 3330
B19: Grand Total | C19: =C6+C9+C12+C15+C18 -> 2040 | D19: =D6+D9+D12+D15+D18 -> 2095 | E19: 2073 | F19: 6208 | G19: 2202 | H19: 2016 | I19: 2237 | J19: 6455 | K19: 12663

Sheet Source
A1: Author | B1: Jon Acampora
A2: Source | B2: https://www.excelcampus.com/tips-shortcuts/7-hidden-excel-buttons/
